[Event "DSAM Bad Wildungen 2024"]
[Site "Bad Wildungen"]
[Date "2024.08.01"]
[Round "1.1"]
[White "Moritz, Aron"]
[Black "Noetzel, Felix"]
[Result "0-1"]
[Annotator "RC"]
[ECO "C54"]
[WhiteElo "2300"]
[BlackElo "2163"]
[PlyCount "112"]
[EventDate "2024.07.31"]
[EventCountry "GER"]
[SourceTitle "playchess.com"]
[Source "ChessBase"]
[SourceQuality "1"]
[TimeControl "40/5400+30:900+30"]

1. e4 {[%emt 0:00:04]} e5 {[%emt 0:00:05]} 2. Nf3 {[%emt 0:00:10]} Nc6 {[%emt 0:00:05]} 3. Bc4 {[%emt 0:00:11]} Nf6 {[%emt 0:00:05]} 4. d3 {[%emt 0:00:10]} Bc5 {[%emt 0:00:10]} 5. c3 {[%emt 0:00:12]} d6 {[%emt 0:00:06]} 6. O-O {[%emt 0:00:48]} a6 {[%emt 0:01:12]} 7. a4 {[%emt 0:01:06]} Ba7 {[%emt 0:02:16]} 8. Nbd2 {[%emt 0:04:31]} O-O {[%emt 0:00:25]} 9. Re1 {[%emt 0:04:14]} Ng4 {[%emt 0:00:44]} 10. Re2 {[%emt 0:03:28]} Kh8 {[%emt 0:00:09]} 11. Nf1 {[%emt 0:19:11]} f5 {[%emt 0:06:47]} 12. h3 {[%emt 0:31:54]} Nf6 {[%emt 0:05:19]} 13. Be3 {[%emt 0:03:56]} fxe4 {[%emt 0:21:07]} 14. dxe4 {[%emt 0:00:07]} Nh5 {[%emt 0:00:36]} 15. Bxa7 {[%emt 0:02:19]} Rxa7 {[%emt 0:00:33]} 16. Re3 {[%emt 0:05:49]} Qf6 {[%emt 0:04:59]} 17. b4 {[%emt 0:03:01]} Ne7 {[%emt 0:11:32]} 18. Ra2 {[%emt 0:01:32]} Ng6 {[%emt 0:06:37]} 19. Kh2 {[%emt 0:01:45]} Ngf4 {[%emt 0:11:11]} 20. Ng1 {[%emt 0:03:43]} Qh6 {[%emt 0:00:24]} 21. Ng3 {[%emt 0:05:31]} Nxg3 {[%emt 0:02:26]} 22. Rxg3 {[%emt 0:01:23]} Ra8 {[%emt 0:01:11]} 23. Qd2 {[%emt 0:03:27]} Bd7 {[%emt 0:04:20]} 24. b5 {[%emt 0:01:30]} a5 {[%emt 0:02:31]} 25. Qe3 {[%emt 0:01:35]} b6 {[%emt 0:04:02]} 26. Be2 {[%emt 0:00:56]} Be6 {[%emt 0:02:39]} 27. Rb2 {[%emt 0:00:55]} Rf6 {[%emt 0:02:23]} 28. Bg4 {[%emt 0:00:20]} Bc4 {[%emt 0:03:15]} 29. Qd2 {[%emt 0:00:40]} Raf8 {[%emt 0:01:17]} 30. Re3 {[%emt 0:00:25]} g5 {[%emt 0:04:59]} 31. Rf3 {[%emt 0:00:35]} Qg6 {[%emt 0:01:27]} 32. Bf5 {[%emt 0:00:20]} Qg7 {[%emt 0:00:27]} 33. g3 {[%emt 0:01:12]} Ne6 34. Bxe6 {[%emt 0:00:00]} Bxe6 {[%emt 0:00:16]} 35. Rxf6 {[%emt 0:00:16]} Qxf6 {[%emt 0:00:01]} 36. Kg2 {[%emt 0:00:39]} Kg7 {[%emt 0:00:42]} 37. Qe3 {[%emt 0:00:26]} Kg6 {[%emt 0:01:21]} 38. Ne2 {[%emt 0:00:37]} h5 {[%emt 0:01:10]} 39. f3 {[%emt 0:00:30]} Bc4 {[%emt 0:00:32]} 40. Nc1 {[%emt 0:00:22]} Qe6 {[%emt 0:00:28]} 41. Rf2 {[%emt 0:05:12]} h4 {[%emt 0:05:21]} 42. g4 {[%emt 0:08:27]} Qf7 {[%emt 0:01:32]} 43. Nd3 {[%emt 0:01:14]} Bxd3 44. Qxd3 {[%emt 0:00:04]} Qf4 {[%emt 0:01:33]} 45. Qc4 {[%emt 0:02:20]} Rf7 {[%emt 0:02:46]} 46. Qe6+ {[%emt 0:00:30]} Kg7 {[%emt 0:00:06]} 47. Qe8 {[%emt 0:00:50]} Qg3+ {[%emt 0:00:15]} 48. Kf1 {[%emt 0:00:04]} Qxh3+ {[%emt 0:00:06]} 49. Ke2 {[%emt 0:00:04]} Qg3 {[%emt 0:00:23]} 50. Qd8 {[%emt 0:01:13]} Qf4 {[%emt 0:00:06]} 51. Kf1 {[%emt 0:00:36]} h3 {[%emt 0:04:54]} 52. Kg1 {[%emt 0:00:06]} Qc1+ {[%emt 0:00:05]} 53. Kh2 {[%emt 0:00:35]} Qe3 {[%emt 0:00:39]} 54. Kxh3 {[%emt 0:00:51]} Qxf2 {[%emt 0:00:16]} 55. Qxg5+ {[%emt 0:00:06]} Kh8 {[%emt 0:00:06]} 56. Qd8+ {[%emt 0:00:20]} Kh7 {[%emt 0:00:04]} 0-1

[Event "DSAM Bad Wildungen 2024"]
[Site "Bad Wildungen"]
[Date "2024.08.01"]
[Round "1.2"]
[White "Vogel, Constantin"]
[Black "Arnold, Max"]
[Result "1-0"]
[Annotator "RC"]
[ECO "A34"]
[WhiteElo "2184"]
[BlackElo "2283"]
[PlyCount "84"]
[EventDate "2024.07.31"]
[EventCountry "GER"]
[SourceTitle "playchess.com"]
[Source "ChessBase"]
[SourceQuality "1"]
[TimeControl "40/5400+30:900+30"]

1. c4 {[%emt 0:00:05]} c5 {[%emt 0:02:25]} 2. g3 {[%emt 0:00:09]} Nf6 {[%emt 0:00:10]} 3. Bg2 {[%emt 0:00:07]} d5 {[%emt 0:00:55]} 4. cxd5 {[%emt 0:00:07]} Nxd5 {[%emt 0:00:06]} 5. Nc3 {[%emt 0:00:05]} Nc7 {[%emt 0:00:36]} 6. Nf3 {[%emt 0:00:52]} Nc6 {[%emt 0:00:13]} 7. O-O {[%emt 0:00:17]} e5 {[%emt 0:00:27]} 8. b3 {[%emt 0:01:37]} Be7 {[%emt 0:00:53]} 9. Bb2 {[%emt 0:00:21]} O-O {[%emt 0:05:28]} 10. Rc1 {[%emt 0:00:56]} f6 {[%emt 0:07:34]} 11. Ne1 {[%emt 0:10:33]} Bd7 {[%emt 0:04:52]} 12. Nd3 {[%emt 0:01:49]} Rc8 {[%emt 0:08:48]} 13. f4 {[%emt 0:01:36]} exf4 {[%emt 0:08:00]} 14. Nxf4 {[%emt 0:00:52]} Re8 {[%emt 0:10:38]} 15. e3 {[%emt 0:05:03]} Bf8 {[%emt 0:11:36]} 16. Ne4 {[%emt 0:09:07]} Ne5 {[%emt 0:14:48]} 17. Nxc5 {[%emt 0:07:53]} Bxc5 {[%emt 0:06:00]} 18. Rxc5 {[%emt 0:01:41]} b6 {[%emt 0:00:24]} 19. Rc3 {[%emt 0:10:26]} g5 {[%emt 0:10:33]} 20. Rxc7 {[%emt 0:05:07]} Rxc7 {[%emt 0:00:54]} 21. Nd5 {[%emt 0:01:02]} Bg4 {[%emt 0:00:18]} 22. Qa1 {[%emt 0:01:54]} Rf7 {[%emt 0:00:48]} 23. Rxf6 {[%emt 0:04:27]} Rxf6 {[%emt 0:00:42]} 24. Bxe5 {[%emt 0:00:11]} Rf7 {[%emt 0:02:38]} 25. Bf6 {[%emt 0:02:30]} Qd6 {[%emt 0:01:05]} 26. Qd4 {[%emt 0:00:52]} Qd7 {[%emt 0:01:57]} 27. Bxg5 {[%emt 0:00:59]} Be6 {[%emt 0:00:33]} 28. Bh6 {[%emt 0:01:32]} Qd8 {[%emt 0:00:34]} 29. h4 {[%emt 0:02:30]} Bc8 {[%emt 0:00:31]} 30. Bf1 {[%emt 0:03:34]} Be6 {[%emt 0:00:23]} 31. Bc4 {[%emt 0:01:27]} b5 {[%emt 0:00:37]} 32. Bxb5 {[%emt 0:04:07]} Qxd5 {[%emt 0:00:28]} 33. Qxd5 {[%emt 0:07:58]} Bxd5 {[%emt 0:00:02]} 34. Bxe8 {[%emt 0:00:16]} Rc7 {[%emt 0:00:02]} 35. Bb5 {[%emt 0:04:46]} Rc2 {[%emt 0:01:24]} 36. e4 {[%emt 0:00:27]} Bxe4 {[%emt 0:00:07]} 37. Bc4+ {[%emt 0:00:08]} Kh8 {[%emt 0:00:04]} 38. a4 {[%emt 0:01:01]} a5 {[%emt 0:01:18]} 39. Kf2 {[%emt 0:00:30]} Bc6 {[%emt 0:00:30]} 40. Ke3 {[%emt 0:02:26]} Bd7 {[%emt 0:00:35]} 41. Kd4 {[%emt 0:24:40]} Bg4 {[%emt 0:09:15]} 42. Kc5 {[%emt 0:00:00]} Be6 {[%emt 0:02:25]} 1-0

[Event "DSAM Bad Wildungen 2024"]
[Site "Bad Wildungen"]
[Date "2024.08.01"]
[Round "1.3"]
[White "Boehme, Sebastian"]
[Black "Zimmermann, Klemens"]
[Result "1-0"]
[Annotator "RC"]
[ECO "B40"]
[WhiteElo "2232"]
[BlackElo "2198"]
[PlyCount "61"]
[EventDate "2024.07.31"]
[EventCountry "GER"]
[SourceTitle "playchess.com"]
[Source "ChessBase"]
[SourceQuality "1"]
[TimeControl "40/5400+30:900+30"]

1. e4 {[%emt 0:00:03]} c5 {[%emt 0:00:04]} 2. Nf3 {[%emt 0:00:17]} e6 {[%emt 0:00:06]} 3. c3 {[%emt 0:00:22]} Nf6 {[%emt 0:00:08]} 4. Bd3 {[%emt 0:01:23]} Nc6 {[%emt 0:02:49]} 5. Bc2 {[%emt 0:02:51]} Qc7 {[%emt 0:10:45]} 6. O-O {[%emt 0:21:08]} b6 {[%emt 0:02:27]} 7. Re1 {[%emt 0:02:10]} Ba6 {[%emt 0:02:10]} 8. e5 {[%emt 0:03:36]} Ng4 {[%emt 0:05:12]} 9. d4 {[%emt 0:01:30]} cxd4 {[%emt 0:02:06]} 10. cxd4 {[%emt 0:00:10]} h5 {[%emt 0:10:23]} 11. Nc3 {[%emt 0:00:47]} d5 {[%emt 0:06:21]} 12. Bg5 {[%emt 0:07:44]} b5 {[%emt 0:15:35]} 13. Bd3 {[%emt 0:04:57]} Qb6 {[%emt 0:06:36]} 14. Qe2 {[%emt 0:08:46]} Rb8 {[%emt 0:03:33]} 15. a4 {[%emt 0:03:27]} Nxd4 {[%emt 0:12:57]} 16. Nxd4 {[%emt 0:00:10]} Qxd4 {[%emt 0:00:05]} 17. Nxb5 {[%emt 0:01:59]} Qb6 {[%emt 0:03:00]} 18. a5 {[%emt 0:05:24]} Qb7 {[%emt 0:01:58]} 19. Nd6+ {[%emt 0:00:54]} Bxd6 {[%emt 0:05:19]} 20. Bxa6 {[%emt 0:00:04]} Qd7 {[%emt 0:00:51]} 21. exd6 {[%emt 0:00:55]} Qxd6 {[%emt 0:00:21]} 22. g3 {[%emt 0:02:10]} f6 {[%emt 0:00:59]} 23. h3 {[%emt 0:01:45]} Kf7 {[%emt 0:05:45]} 24. hxg4 {[%emt 0:01:06]} hxg4 {[%emt 0:00:02]} 25. Bf4 {[%emt 0:09:53]} e5 {[%emt 0:00:48]} 26. Bxe5 {[%emt 0:01:05]} fxe5 {[%emt 0:00:06]} 27. Qxe5 {[%emt 0:00:39]} Qxa6 {[%emt 0:00:16]} 28. Qxd5+ {[%emt 0:00:26]} Kf8 {[%emt 0:00:02]} 29. Ra4 {[%emt 0:01:33]} Rh6 {[%emt 0:00:39]} 30. Rf4+ {[%emt 0:01:03]} Rf6 {[%emt 0:00:14]} 31. Re6 {[%emt 0:00:20]} 1-0

[Event "DSAM Bad Wildungen 2024"]
[Site "Bad Wildungen"]
[Date "2024.08.01"]
[Round "1.4"]
[White "Huesmann, Thomas"]
[Black "Dathe, Frederick"]
[Result "1-0"]
[Annotator "RC"]
[ECO "B22"]
[WhiteElo "2165"]
[BlackElo "2247"]
[PlyCount "177"]
[EventDate "2024.07.31"]
[EventCountry "GER"]
[SourceTitle "playchess.com"]
[Source "ChessBase"]
[SourceQuality "1"]
[TimeControl "40/5400+30:900+30"]

1. e4 {[%emt 0:00:04]} c5 {[%emt 0:00:39]} 2. c3 {[%emt 0:01:19]} Nf6 {[%emt 0:00:59]} 3. e5 {[%emt 0:00:12]} Nd5 {[%emt 0:00:16]} 4. d4 {[%emt 0:00:07]} cxd4 {[%emt 0:01:15]} 5. cxd4 {[%emt 0:00:12]} d6 {[%emt 0:00:58]} 6. Nf3 {[%emt 0:00:21]} Nc6 {[%emt 0:01:48]} 7. Bc4 {[%emt 0:00:44]} Nb6 {[%emt 0:02:26]} 8. Bb5 {[%emt 0:00:19]} dxe5 {[%emt 0:01:23]} 9. Nxe5 {[%emt 0:00:14]} Bd7 {[%emt 0:01:14]} 10. Bxc6 {[%emt 0:00:21]} Bxc6 {[%emt 0:03:21]} 11. Nxc6 {[%emt 0:00:12]} bxc6 {[%emt 0:00:08]} 12. Nc3 {[%emt 0:02:15]} e6 {[%emt 0:02:35]} 13. O-O {[%emt 0:01:23]} Be7 {[%emt 0:05:52]} 14. Be3 {[%emt 0:00:22]} O-O {[%emt 0:01:38]} 15. Rc1 {[%emt 0:02:48]} Rc8 {[%emt 0:09:35]} 16. Qg4 {[%emt 0:02:11]} Kh8 {[%emt 0:14:17]} 17. g3 {[%emt 0:04:20]} Nd5 {[%emt 0:02:32]} 18. Qe2 {[%emt 0:06:44]} Nxc3 {[%emt 0:03:45]} 19. Rxc3 {[%emt 0:00:30]} Qa5 {[%emt 0:03:55]} 20. a3 {[%emt 0:06:47]} Qb5 {[%emt 0:16:36]} 21. Qxb5 {[%emt 0:00:59]} cxb5 {[%emt 0:02:02]} 22. Rfc1 {[%emt 0:00:10]} Rxc3 {[%emt 0:00:21]} 23. Rxc3 {[%emt 0:00:08]} Bd6 {[%emt 0:00:41]} 24. Rc6 {[%emt 0:06:30]} Rd8 {[%emt 0:02:33]} 25. Ra6 {[%emt 0:13:48]} Bb8 {[%emt 0:04:53]} 26. Kf1 {[%emt 0:07:12]} h6 {[%emt 0:01:50]} 27. Ke2 {[%emt 0:00:15]} g5 {[%emt 0:03:50]} 28. Rc6 {[%emt 0:02:46]} Kg7 {[%emt 0:00:41]} 29. Rc5 {[%emt 0:00:36]} a6 {[%emt 0:01:23]} 30. Rc6 {[%emt 0:00:55]} Rd6 {[%emt 0:01:53]} 31. Rc8 {[%emt 0:04:46]} Ba7 {[%emt 0:00:10]} 32. Ra8 {[%emt 0:01:26]} Rd7 {[%emt 0:02:05]} 33. d5 {[%emt 0:00:53]} Bxe3 {[%emt 0:00:09]} 34. dxe6 {[%emt 0:07:30]} Re7 {[%emt 0:01:40]} 35. Kxe3 {[%emt 0:00:16]} Rxe6+ {[%emt 0:00:07]} 36. Kd3 {[%emt 0:00:45]} g4 {[%emt 0:02:23]} 37. Rd8 {[%emt 0:03:47]} Rf6 {[%emt 0:01:35]} 38. Ke2 {[%emt 0:00:24]} Re6+ {[%emt 0:00:46]} 39. Kd2 {[%emt 0:00:35]} Kg6 {[%emt 0:01:01]} 40. Rd4 {[%emt 0:00:42]} Kg5 {[%emt 0:01:14]} 41. Rd5+ {[%emt 0:18:38]} Kg6 {[%emt 0:17:07]} 42. Rd4 {[%emt 0:00:45]} h5 {[%emt 0:00:43]} 43. Rd5 {[%emt 0:04:06]} Rf6 {[%emt 0:00:56]} 44. Ke2 {[%emt 0:00:16]} Re6+ {[%emt 0:01:28]} 45. Kd2 {[%emt 0:00:10]} Rf6 {[%emt 0:00:00]} 46. Ke2 {[%emt 0:00:00]} Rf3 {[%emt 0:00:00]} 47. Rd6+ {[%emt 0:00:00]} f6 {[%emt 0:00:00]} 48. Rd3 {[%emt 0:00:00]} Rf5 {[%emt 0:00:00]} 49. Rd6 {[%emt 0:00:00]} Re5+ {[%emt 0:00:00]} 50. Kd2 {[%emt 0:00:00]} a5 {[%emt 0:00:00]} 51. Ra6 {[%emt 0:00:00]} Rf5 {[%emt 0:00:00]} 52. Ke2 {[%emt 0:00:00]} a4 {[%emt 0:00:00]} 53. Rd6 {[%emt 0:01:25]} Rc5 {[%emt 0:00:00]} 54. Kd2 {[%emt 0:03:33]} Kf5 {[%emt 0:00:00]} 55. Rd4 {[%emt 0:00:38]} Ke5 {[%emt 0:00:00]} 56. Rb4 {[%emt 0:00:58]} Kd6 {[%emt 0:01:30]} 57. Rf4 {[%emt 0:01:20]} Ke6 {[%emt 0:01:18]} 58. Rb4 {[%emt 0:00:10]} Rf5 {[%emt 0:00:26]} 59. Ke2 {[%emt 0:04:15]} Kd6 {[%emt 0:00:17]} 60. b3 {[%emt 0:03:59]} axb3 {[%emt 0:00:21]} 61. Rxb3 {[%emt 0:00:09]} Kc5 {[%emt 0:00:22]} 62. Rc3+ {[%emt 0:00:42]} Kd4 {[%emt 0:00:41]} 63. Rc8 {[%emt 0:01:58]} Rf3 {[%emt 0:00:45]} 64. Rd8+ {[%emt 0:02:33]} Kc3 {[%emt 0:01:24]} 65. Rb8 {[%emt 0:01:20]} Rf5 {[%emt 0:00:23]} 66. Ra8 {[%emt 0:01:28]} Re5+ {[%emt 0:00:31]} 67. Kd1 {[%emt 0:01:33]} Kb3 {[%emt 0:00:44]} 68. Kd2 {[%emt 0:00:32]} Rd5+ {[%emt 0:00:50]} 69. Ke3 {[%emt 0:00:20]} Kc3 {[%emt 0:00:34]} 70. Rc8+ {[%emt 0:00:54]} Kb2 {[%emt 0:00:14]} 71. Ra8 {[%emt 0:00:12]} Rf5 {[%emt 0:01:48]} 72. Ra5 {[%emt 0:01:10]} Kc2 {[%emt 0:00:47]} 73. f4 {[%emt 0:01:26]} Rc5 {[%emt 0:01:20]} 74. Kd4 {[%emt 0:00:22]} Rc4+ {[%emt 0:00:30]} 75. Kd5 {[%emt 0:00:05]} Ra4 {[%emt 0:00:36]} 76. Rxb5 {[%emt 0:00:08]} Rxa3 {[%emt 0:00:05]} 77. Ke6 {[%emt 0:00:09]} h4 {[%emt 0:00:32]} 78. gxh4 {[%emt 0:00:24]} Rh3 {[%emt 0:00:24]} 79. Kxf6 {[%emt 0:01:00]} Rxh2 {[%emt 0:00:04]} 80. Rg5 {[%emt 0:00:39]} Rxh4 {[%emt 0:00:20]} 81. Kf5 {[%emt 0:00:26]} Kd3 {[%emt 0:01:00]} 82. Rxg4 {[%emt 0:00:06]} Rh8 {[%emt 0:00:50]} 83. Rg7 {[%emt 0:00:32]} Ke3 {[%emt 0:00:30]} 84. Kg5 {[%emt 0:00:33]} Ra8 {[%emt 0:01:08]} 85. f5 {[%emt 0:00:22]} Ra5 {[%emt 0:00:19]} 86. Re7+ {[%emt 0:00:15]} Kf3 {[%emt 0:00:06]} 87. Kg6 {[%emt 0:00:15]} Kf4 {[%emt 0:00:10]} 88. Re1 {[%emt 0:00:43]} Ra2 {[%emt 0:00:40]} 89. f6 {[%emt 0:00:14]} 1-0

[Event "DSAM Bad Wildungen 2024"]
[Site "Bad Wildungen"]
[Date "2024.08.01"]
[Round "1.5"]
[White "Kocharin, Timur"]
[Black "Tiarks, Jann-Christian"]
[Result "1-0"]
[Annotator "RC"]
[ECO "B42"]
[WhiteElo "2297"]
[BlackElo "2185"]
[PlyCount "65"]
[EventDate "2024.07.31"]
[EventCountry "GER"]
[SourceTitle "playchess.com"]
[Source "ChessBase"]
[SourceQuality "1"]
[TimeControl "40/5400+30:900+30"]

1. e4 {[%emt 0:00:23]} c5 {[%emt 0:00:10]} 2. Nf3 {[%emt 0:00:06]} d6 {[%emt 0:00:06]} 3. Bb5+ {[%emt 0:00:20]} Nd7 {[%emt 0:01:39]} 4. O-O {[%emt 0:00:41]} Ngf6 {[%emt 0:00:58]} 5. Re1 {[%emt 0:00:20]} a6 {[%emt 0:00:32]} 6. Bf1 {[%emt 0:01:18]} e6 {[%emt 0:03:13]} 7. c4 {[%emt 0:03:17]} Be7 {[%emt 0:03:36]} 8. d4 {[%emt 0:00:27]} cxd4 {[%emt 0:00:34]} 9. Nxd4 {[%emt 1:28:08]} O-O {[%emt 0:00:36]} 10. Nc3 {[%emt 0:00:00]} Qc7 {[%emt 0:01:51]} 11. f3 {[%emt 0:00:00]} Ne5 {[%emt 0:03:05]} 12. Qe2 {[%emt 0:00:00]} Bd7 {[%emt 0:02:15]} 13. Be3 {[%emt 0:00:00]} Rac8 {[%emt 0:04:07]} 14. Rac1 {[%emt 0:00:00]} Rfe8 {[%emt 0:03:23]} 15. Qf2 {[%emt 0:00:00]} Qa5 {[%emt 0:07:18]} 16. b3 {[%emt 0:00:00]} d5 {[%emt 0:05:12]} 17. exd5 {[%emt 0:00:00]} exd5 {[%emt 0:04:11]} 18. Nxd5 {[%emt 0:00:00]} Nxd5 {[%emt 0:01:11]} 19. cxd5 {[%emt 0:00:00]} Qxd5 {[%emt 0:01:27]} 20. h3 {[%emt 0:00:00]} Bb4 {[%emt 0:03:15]} 21. Rxc8 {[%emt 0:00:00]} Rxc8 {[%emt 0:01:23]} 22. Rd1 {[%emt 0:00:00]} Qa5 {[%emt 0:17:52]} 23. f4 {[%emt 0:00:00]} Nc6 {[%emt 0:00:58]} 24. Nc2 {[%emt 0:00:00]} Bf5 {[%emt 0:00:37]} 25. Nxb4 {[%emt 0:00:00]} Nxb4 {[%emt 0:00:26]} 26. Rd2 {[%emt 0:00:00]} Nd5 {[%emt 0:04:25]} 27. Bd4 {[%emt 0:00:00]} Rc1 {[%emt 0:02:15]} 28. Bb2 {[%emt 0:00:00]} Rc8 {[%emt 0:03:11]} 29. Bc4 {[%emt 0:00:00]} Nf6 {[%emt 0:01:05]} 30. Bxf6 {[%emt 0:00:00]} gxf6 {[%emt 0:00:05]} 31. Rd5 {[%emt 0:00:00]} b5 {[%emt 0:02:29]} 32. Rxf5 {[%emt 0:00:00]} Qc3 {[%emt 0:00:08]} 33. Bf1 {[%emt 0:00:00]} 1-0

[Event "DSAM Bad Wildungen 2024"]
[Site "Bad Wildungen"]
[Date "2024.08.01"]
[Round "1.6"]
[White "Gluma, Christian"]
[Black "Jahncke, Giso"]
[Result "1-0"]
[Annotator "RC"]
[ECO "C54"]
[WhiteElo "2091"]
[BlackElo "2253"]
[PlyCount "53"]
[EventDate "2024.07.31"]
[EventCountry "GER"]
[SourceTitle "playchess.com"]
[Source "ChessBase"]
[SourceQuality "1"]
[TimeControl "40/5400+30:900+30"]

1. e4 {[%emt 0:00:05]} e5 {[%emt 0:00:09]} 2. Nf3 {[%emt 0:00:12]} Nc6 {[%emt 0:00:07]} 3. Bc4 {[%emt 0:00:05]} Nf6 {[%emt 0:00:08]} 4. d3 {[%emt 0:00:11]} Bc5 {[%emt 0:00:10]} 5. c3 {[%emt 0:00:29]} a5 {[%emt 0:00:20]} 6. Nbd2 {[%emt 0:02:26]} d6 {[%emt 0:00:24]} 7. O-O {[%emt 0:04:59]} O-O {[%emt 0:01:41]} 8. Bb3 {[%emt 0:08:22]} Ba7 {[%emt 0:01:30]} 9. Re1 {[%emt 0:05:04]} Ng4 {[%emt 0:03:06]} 10. Re2 {[%emt 0:01:05]} Kh8 {[%emt 0:05:20]} 11. h3 {[%emt 0:02:19]} f5 {[%emt 0:05:42]} 12. exf5 {[%emt 0:18:21]} Nh6 {[%emt 0:37:43]} 13. g4 {[%emt 0:13:38]} Nxf5 {[%emt 0:00:09]} 14. gxf5 {[%emt 0:00:28]} Bxf5 {[%emt 0:00:04]} 15. Nf1 {[%emt 0:13:16]} Bxh3 {[%emt 0:03:57]} 16. Ng5 {[%emt 0:08:37]} Bg4 {[%emt 0:04:10]} 17. d4 {[%emt 0:01:34]} exd4 {[%emt 0:13:38]} 18. Qd3 {[%emt 0:03:04]} g6 {[%emt 0:01:02]} 19. Re4 {[%emt 0:05:56]} Ne5 {[%emt 0:05:06]} 20. Qg3 {[%emt 0:03:20]} dxc3 {[%emt 0:03:42]} 21. Bf4 {[%emt 0:01:31]} Qf6 {[%emt 0:05:11]} 22. Ne3 {[%emt 0:03:42]} cxb2 {[%emt 0:02:53]} 23. Re1 {[%emt 0:01:21]} Bh5 {[%emt 0:03:24]} 24. Rxe5 {[%emt 0:01:23]} Qxf4 {[%emt 0:00:11]} 25. Qxf4 {[%emt 0:00:35]} Rxf4 {[%emt 0:00:05]} 26. Re7 {[%emt 0:00:09]} d5 {[%emt 0:01:54]} 27. Bxd5 {[%emt 0:00:16]} 1-0

[Event "DSAM Bad Wildungen 2024"]
[Site "Bad Wildungen"]
[Date "2024.08.01"]
[Round "1.7"]
[White "Kracht, Raphael"]
[Black "Rolle, Eric"]
[Result "1-0"]
[Annotator "RC"]
[ECO "B01"]
[WhiteElo "2199"]
[BlackElo "2167"]
[PlyCount "73"]
[EventDate "2024.07.31"]
[EventCountry "GER"]
[SourceTitle "playchess.com"]
[Source "ChessBase"]
[SourceQuality "1"]
[TimeControl "40/5400+30:900+30"]

1. e4 {[%emt 0:00:03]} d5 {[%emt 0:00:36]} 2. exd5 {[%emt 0:00:53]} Nf6 {[%emt 0:00:04]} 3. Nf3 {[%emt 0:00:32]} Nxd5 {[%emt 0:00:21]} 4. d4 {[%emt 0:00:06]} Bg4 {[%emt 0:01:02]} 5. c4 {[%emt 0:00:37]} Nb6 {[%emt 0:00:27]} 6. c5 {[%emt 0:01:48]} Nd5 {[%emt 0:00:55]} 7. Qb3 {[%emt 0:01:42]} Bc8 {[%emt 0:17:54]} 8. Bc4 {[%emt 0:00:49]} e6 {[%emt 0:00:21]} 9. O-O {[%emt 0:01:35]} Be7 {[%emt 0:00:08]} 10. Re1 {[%emt 0:12:27]} O-O {[%emt 0:03:18]} 11. Nc3 {[%emt 0:06:49]} Nxc3 {[%emt 0:08:54]} 12. bxc3 {[%emt 0:06:39]} Nc6 {[%emt 0:09:28]} 13. Bd3 {[%emt 0:04:47]} b6 {[%emt 0:15:49]} 14. Qc2 {[%emt 0:02:18]} h6 {[%emt 0:14:35]} 15. Bh7+ {[%emt 0:04:04]} Kh8 {[%emt 0:00:05]} 16. Be4 {[%emt 0:00:06]} Bb7 {[%emt 0:00:29]} 17. Rb1 {[%emt 0:01:45]} Bf6 {[%emt 0:03:35]} 18. Bf4 {[%emt 0:06:22]} Qc8 {[%emt 0:01:38]} 19. Qc1 {[%emt 0:08:14]} g5 {[%emt 0:05:11]} 20. Bg3 {[%emt 0:08:25]} Ne7 {[%emt 0:08:59]} 21. h4 {[%emt 0:05:37]} Bxe4 {[%emt 0:01:43]} 22. Rxe4 {[%emt 0:00:04]} Nf5 {[%emt 0:01:27]} 23. hxg5 {[%emt 0:00:39]} hxg5 {[%emt 0:01:28]} 24. Nxg5 {[%emt 0:00:33]} Qd8 {[%emt 0:01:36]} 25. Be5 {[%emt 0:03:58]} Bxe5 {[%emt 0:00:46]} 26. Rxe5 {[%emt 0:00:14]} Qf6 {[%emt 0:00:32]} 27. Qf4 {[%emt 0:00:29]} Qg6 {[%emt 0:00:29]} 28. Re4 {[%emt 0:15:37]} Kg7 {[%emt 0:01:12]} 29. Qe5+ {[%emt 0:03:13]} Kh6 {[%emt 0:00:08]} 30. Rg4 {[%emt 0:03:13]} Qxg5 {[%emt 0:01:46]} 31. Rxg5 {[%emt 0:00:11]} Kxg5 {[%emt 0:00:01]} 32. Re1 {[%emt 0:00:41]} bxc5 {[%emt 0:00:28]} 33. Re3 {[%emt 0:01:33]} Kg6 {[%emt 0:00:23]} 34. Re4 {[%emt 0:00:24]} Rab8 {[%emt 0:01:01]} 35. Rg4+ {[%emt 0:00:35]} Kh5 {[%emt 0:00:13]} 36. f3 {[%emt 0:00:43]} cxd4 {[%emt 0:00:23]} 37. Qh2+ {[%emt 0:00:06]} 1-0

[Event "DSAM Bad Wildungen 2024"]
[Site "Bad Wildungen"]
[Date "2024.08.01"]
[Round "1.8"]
[White "Gaertner, Michael"]
[Black "Menzel, Maximilian"]
[Result "0-1"]
[Annotator "RC"]
[ECO "D00"]
[WhiteElo "2037"]
[BlackElo "2108"]
[PlyCount "82"]
[EventDate "2024.07.31"]
[EventCountry "GER"]
[SourceTitle "playchess.com"]
[Source "ChessBase"]
[SourceQuality "1"]
[TimeControl "40/5400+30:900+30"]

1. d4 {[%emt 0:00:04]} Nf6 {[%emt 0:00:05]} 2. Nc3 {[%emt 0:00:12]} d5 {[%emt 0:00:06]} 3. Bf4 {[%emt 0:00:05]} c5 {[%emt 0:00:05]} 4. e4 {[%emt 0:01:54]} dxe4 {[%emt 0:00:50]} 5. d5 {[%emt 0:01:14]} a6 {[%emt 0:04:16]} 6. Nge2 {[%emt 0:01:45]} Nbd7 {[%emt 1:28:08]} 7. Ng3 {[%emt 0:07:32]} Nb6 {[%emt 0:00:00]} 8. Qd2 {[%emt 0:02:21]} Nbxd5 {[%emt 0:00:00]} 9. O-O-O {[%emt 0:00:20]} e6 {[%emt 0:00:00]} 10. Bc4 {[%emt 0:05:24]} Be7 {[%emt 0:00:00]} 11. Ngxe4 {[%emt 0:15:39]} Nxe4 {[%emt 0:00:00]} 12. Nxe4 {[%emt 0:02:40]} O-O {[%emt 0:00:00]} 13. Bg3 {[%emt 0:09:03]} Nb6 {[%emt 0:00:00]} 14. Qc3 {[%emt 0:02:12]} Qe8 {[%emt 0:00:00]} 15. Be2 {[%emt 0:16:10]} Nd5 {[%emt 0:00:00]} 16. Qb3 {[%emt 0:02:46]} b5 {[%emt 0:00:00]} 17. c4 {[%emt 0:00:01]} bxc4 {[%emt 0:00:00]} 18. Bxc4 {[%emt 0:00:05]} Nf6 {[%emt 0:00:00]} 19. Nd6 {[%emt 0:00:27]} Qc6 {[%emt 0:00:00]} 20. f3 {[%emt 0:01:14]} Rd8 {[%emt 0:00:00]} 21. Nxc8 {[%emt 0:05:51]} Raxc8 {[%emt 0:00:00]} 22. Rhe1 {[%emt 0:01:16]} Rd4 {[%emt 0:03:56]} 23. Be5 {[%emt 0:01:07]} Rxd1+ {[%emt 0:01:17]} 24. Rxd1 {[%emt 0:00:16]} a5 {[%emt 0:02:19]} 25. Bb5 {[%emt 0:02:00]} c4 {[%emt 0:00:42]} 26. Qa4 {[%emt 0:00:22]} Qc5 {[%emt 0:00:32]} 27. Bc3 {[%emt 0:01:23]} Nd5 {[%emt 0:00:57]} 28. Rd4 {[%emt 0:03:34]} Nxc3 {[%emt 0:00:36]} 29. bxc3 {[%emt 0:00:04]} Rb8 {[%emt 0:00:36]} 30. Bxc4 {[%emt 0:01:59]} Qg5+ {[%emt 0:00:19]} 31. Rd2 {[%emt 0:01:02]} Bc5 {[%emt 0:00:39]} 32. Kc2 {[%emt 0:00:47]} Rb2+ {[%emt 0:00:26]} 33. Kxb2 {[%emt 0:00:57]} Qxd2+ {[%emt 0:00:01]} 34. Kb1 {[%emt 0:00:11]} Qxc3 {[%emt 0:00:27]} 35. Qc2 {[%emt 0:03:43]} Qe1+ {[%emt 0:00:27]} 36. Qc1 {[%emt 0:04:31]} Qb4+ {[%emt 0:00:13]} 37. Bb3 {[%emt 0:00:09]} a4 {[%emt 0:00:18]} 38. Qd1 {[%emt 0:00:26]} axb3 {[%emt 0:00:27]} 39. axb3 {[%emt 0:00:47]} g6 {[%emt 0:00:28]} 40. Qd8+ {[%emt 0:00:34]} Kg7 {[%emt 0:00:28]} 41. Kc2 {[%emt 0:15:03]} Bd4 {[%emt 0:17:22]} 0-1